fUSD/lending_fUSD_20240408
["ID","MTS","AMOUNT","RATE_DAILY","PERIOD"]
[321912032,1712615444373,-300.0,0.00023097,2]
[321912033,1712615444382,-1000.0,0.000231,2]
[321912034,1712615444393,-5432.95673452,0.00023122,2]
[321912035,1712615444403,-25070.81865865,0.00023134,2]
[321912036,1712615444414,-150.0,0.00023135,4]
[321912037,1712615444424,-269.46527,0.0002318,2]
[321912038,1712615444434,-150.0,0.00023223,4]
[321912039,1712615444443,-150.91251996,0.00023235,2]
[321912040,1712615444455,-304.64407325,0.0002324,2]
[321912041,1712615444465,-150.0,0.00023262,4]
[321912042,1712615444475,-15713.97043751,0.00023277,2]
[321912043,1712615444485,-150.0,0.0002328,2]
[321912044,1712615444495,-150.0,0.00023287,4]
[321912045,1712615444506,-3000.0,0.00023288,2]
[321912046,1712615444516,-3586.1368294,0.00023303,2]
[321912047,1712615444527,-150.0,0.00023311,4]
[321912048,1712615444538,-177.0,0.0002332,3]
[321912049,1712615444548,-150.0,0.00023325,2]
[321912050,1712615444558,-700.0,0.00023328,2]
[321912051,1712615444569,-1100.0,0.00023328,2]
[321912052,1712615444579,-439.387,0.00023383,2]
[321912053,1712615444588,-607.0,0.00023383,2]
[321912054,1712615444597,-1944.0,0.00023383,2]
[321912055,1712615444606,-288.448,0.00023383,2]
[321912056,1712615444615,-806.0,0.00023383,2]
[321912057,1712615444625,-1469.0,0.00023383,2]
[321912058,1712615444635,-1142.0,0.00023383,2]
[321912059,1712615444644,-3037.0,0.00023383,2]
[321912060,1712615444653,-398.0,0.00023383,2]
[321912061,1712615444664,-151.908,0.00023383,2]
[321912062,1712615444673,-279.865,0.00023383,2]
[321912063,1712615444682,-1634.0,0.00023383,2]
[321912064,1712615444692,-2435.0,0.00023383,2]
[321912065,1712615444701,-214.0,0.00023383,2]
[321912066,1712615444711,-358.798,0.00023383,2]
[321912067,1712615444720,-453.423,0.00023383,2]
[321912068,1712615444729,-5707.0,0.00023383,2]
[321912069,1712615444738,-826.255,0.00023383,2]
[321912070,1712615444747,-2286.0,0.00023383,2]
[321912071,1712615444757,-37544.0,0.00023383,2]
[321912072,1712615444766,-2461.0,0.00023383,2]
[321912073,1712615444776,-1388.0,0.00023383,2]
[321912074,1712615444788,-1313.0,0.00023383,2]
[321912075,1712615444797,-458.0,0.00023383,2]
[321912076,1712615444807,-4793.0,0.00023383,2]
[321912077,1712615444817,-539.0,0.00023383,2]
[321912078,1712615444826,-232.40801987,0.00023396,2]
[321912079,1712615444836,-150.0,0.00023399,4]
[321912080,1712615444844,-150.0,0.00023416,2]
[321912081,1712615444854,-150.0,0.00023421,2]
[321912082,1712615444865,-300.0,0.00023435,2]
[321912083,1712615444874,-150.0,0.00023439,2]
[321912084,1712615444883,-150.0,0.00023446,2]
[321912085,1712615444892,-150.0,0.00023452,2]
[321912086,1712615444901,-150.91251996,0.00023468,2]
[321912087,1712615444911,-150.0,0.00023487,4]
[321912088,1712615444921,-150.0,0.00023487,2]
[321912089,1712615444931,-308.55184876,0.000235,2]
[321912090,1712615444940,-150.0,0.000235,2]
[321912091,1712615444949,-150.0,0.00023511,4]
[321912092,1712615444958,-150.0,0.00023535,4]
[321912093,1712615444967,-150.0,0.00023545,2]
[321912094,1712615444976,-150.0,0.00023553,2]
[321912095,1712615444986,-8296.32721913,0.00023559,2]
[321912096,1712615444995,-150.0,0.00023575,4]
[321912097,1712615445005,-150.0,0.00023583,2]
[321912098,1712615445014,-1000.0,0.000236,2]
[321912099,1712615445023,-150.0,0.00023604,2]
[321912100,1712615445033,-300.0,0.0002361,2]
[321912101,1712615445042,-150.0,0.00023613,2]
[321912102,1712615445052,-12300.52740197,0.00023626,2]
[321912103,1712615445061,-150.0,0.00023627,2]
[321912104,1712615445072,-1500.0,0.00023655,2]
[321912105,1712615445081,-150.0,0.00023663,4]
[321912106,1712615445091,-150.0,0.00023667,2]
[321912107,1712615445102,-150.0,0.00023673,2]
[321912108,1712615445112,-5432.95673452,0.00023678,2]
[321912109,1712615445121,-150.0,0.00023678,2]
[321912110,1712615445130,-150.0,0.00023691,2]
[321912111,1712615445140,-25070.81865865,0.00023693,2]
[321912112,1712615445152,-300.0,0.00023698,2]
[321912113,1712615445162,-922.06,0.000237,2]
[321912114,1712615445172,-150.91251996,0.00023701,2]
[321912115,1712615445182,-1000.0,0.00023706,2]
[321912116,1712615445192,-150.0,0.00023716,2]
[321912117,1712615445201,-321.08269601,0.00023718,2]
[321912118,1712615445211,-150.0,0.00023722,2]
[321912119,1712615445222,-150.0,0.00023729,2]
[321912120,1712615445231,-1500.0,0.0002373,2]
[321912121,1712615445241,-150.0,0.00023731,2]
[321912122,1712615445250,-150.0,0.00023733,2]
[321912123,1712615445260,-150.0,0.00023734,4]
[321912124,1712615445269,-150.0,0.0002375,4]
[321912125,1712615445278,-150.0,0.00023758,2]
[321912126,1712615445287,-150.0,0.00023775,2]
[321912127,1712615445297,-150.0,0.00023778,2]
[321912128,1712615445307,-150.0,0.00023781,2]
[321912129,1712615445316,-500.0,0.00023781,2]
[321912130,1712615445325,-1500.0,0.00023783,2]
[321912131,1712615445334,-300.0,0.00023788,2]
[321912132,1712615445345,-300.0,0.00023791,2]
[321912133,1712615445354,-150.0,0.00023802,2]
[321912134,1712615445363,-150.0,0.00023809,4]
[321912135,1712615445373,-150.0,0.00023809,4]
[321912136,1712615445382,-150.0,0.00023812,2]
[321912137,1712615445391,-300.0,0.00023815,2]
[321912138,1712615445400,-150.0,0.00023817,2]
[321912139,1712615445410,-300.0,0.00023818,2]
[321912140,1712615445421,-150.0,0.00023818,2]
[321912141,1712615445430,-300.0,0.0002382,2]
[321912142,1712615445439,-150.0,0.0002382,2]
[321912143,1712615445449,-304.64407325,0.00023825,2]
[321912144,1712615445458,-150.0,0.00023835,2]
[321912145,1712615445467,-150.0,0.00023838,4]
[321912146,1712615445477,-415.15699043,0.00023846,2]
[321912147,1712615445486,-150.0,0.00023848,2]
[321912148,1712615445494,-150.0,0.00023855,2]
[321912149,1712615445504,-150.0,0.00023856,2]
[321912150,1712615445513,-1000.0,0.00023857,2]
[321912151,1712615445524,-300.0,0.0002386,2]
[321912152,1712615445534,-150.0,0.00023868,2]
[321912153,1712615445545,-150.0,0.00023869,2]
[321912154,1712615445557,-150.0,0.00023872,2]
[321912155,1712615445567,-500.0,0.00023876,2]
[321912156,1712615445577,-500.0,0.00023876,2]
[321912157,1712615445587,-700.0,0.00023876,2]
[321912158,1712615445597,-1100.0,0.00023876,2]
[321912159,1712615445607,-150.0,0.00023884,2]
[321912160,1712615445616,-150.0,0.00023885,2]
[321912161,1712615445626,-1500.0,0.0002389,2]
[321912162,1712615445635,-300.0,0.00023894,2]
[321912163,1712615445645,-150.0,0.00023895,2]
[321912164,1712615445655,-245.3207084,0.00023901,2]
[321912165,1712615445666,-3586.1368294,0.00023904,2]
[321912166,1712615446036,-300.0,0.00023924,2]
[321912167,1712615446068,-150.0,0.00023926,4]
[321912168,1712615446077,-150.0,0.00023931,2]
[321912170,1712615446086,-1470.33982002,0.00023934,2]
[321912172,1712615446096,-150.91251996,0.00023935,2]
[321912174,1712615446106,-150.0,0.00023939,2]
[321912176,1712615446115,-1500.0,0.00023942,2]
[321912178,1712615446125,-150.0,0.00023944,2]
[321912180,1712615446134,-300.0,0.00023952,2]
[321912181,1712615446147,-150.0,0.00023953,2]
[321912183,1712615446157,-150.0,0.00023957,2]
[321912185,1712615446166,-150.0,0.00023958,4]
[321912187,1712615446177,-1500.0,0.0002396,2]
[321912189,1712615446186,-300.0,0.00023964,2]
[321912190,1712615446197,-249.67009252,0.00023972,2]
[321912192,1712615446207,-300.0,0.00023979,2]
[321912194,1712615446220,-150.0,0.00023981,2]
[321912196,1712615446230,-300.0,0.00023988,2]
[321912198,1712615446241,-150.0,0.00023992,2]
[321912200,1712615446252,-150.0,0.00023997,2]
[321912203,1712615446263,-365.10503971,0.00024,2]
[321912205,1712615446273,-224.56326927,0.00024,2]
[321912207,1712615446282,-150.0,0.00024,2]
[321912208,1712615446291,-150.0,0.00024002,2]
[321912210,1712615446301,-150.0,0.00024004,2]
[321912212,1712615446311,-200.0,0.00024007,2]
[321912214,1712615446321,-1000.0,0.00024007,2]
[321912216,1712615446331,-500.0,0.00024007,2]
[321912218,1712615446340,-200.0,0.00024007,2]
[321912220,1712615446349,-150.0,0.00024008,2]
[321912221,1712615446359,-150.0,0.00024009,2]
[321912222,1712615446369,-150.0,0.00024013,2]
[321912223,1712615446379,-150.0,0.00024014,4]
[321912224,1712615446389,-150.0,0.00024019,2]
[321912225,1712615446399,-1500.0,0.00024027,2]
[321912226,1712615446411,-150.0,0.00024031,2]
[321912227,1712615446422,-1500.0,0.00024033,2]
[321912228,1712615446433,-1648.85394324,0.00024054,8]
[321912229,1712615446442,-150.0,0.00024059,2]
[321912230,1712615446452,-1500.0,0.00024061,2]
[321912231,1712615446462,-150.0,0.00024063,2]
[321912232,1712615446473,-300.0,0.00024068,2]
[321912233,1712615446485,-150.0,0.00024083,4]
[321912234,1712615446497,-150.0,0.00024086,2]
[321912235,1712615446508,-312.4020961,0.00024087,2]
[321912236,1712615446519,-300.0,0.00024087,2]
[321912237,1712615446529,-107421.45059169,0.00024088,2]
[321912238,1712615446548,-1517.01789106,0.00024088,2]
[321912239,1712615446561,-1806.7534696,0.00024088,2]
[321912240,1712615446627,-1617.53884592,0.00024088,2]
[321912253,1712615447701,-151.484,0.00022805,2]
[321912254,1712615447711,-1228.0,0.00022805,2]
[321912255,1712615447720,-174.0,0.00023,2]
[321912256,1712615447730,-150.0,0.00023415,2]
[321912257,1712615447739,-150.0,0.00023477,2]
[321912258,1712615447749,-150.0,0.00023501,2]
[321912259,1712615447758,-150.0,0.00023575,2]
[321912260,1712615447767,-150.0,0.00023622,2]
[321912261,1712615447776,-150.0,0.00023634,2]
[321912262,1712615447786,-150.0,0.00023667,2]
[321912263,1712615447796,-150.0,0.00023763,2]
[321912264,1712615447805,-150.0,0.00023804,2]
[321912265,1712615447815,-150.0,0.00023834,2]
[321912266,1712615447825,-150.0,0.00023876,2]
[321912267,1712615447834,-150.0,0.00023916,2]
[321912268,1712615447843,-150.0,0.00023945,2]
[321912269,1712615447852,-150.0,0.00024028,2]
[321912270,1712615447861,-15702.71516236,0.00024088,2]
[321912271,1712615447940,-360.50547167,0.00022805,2]
[321912272,1712615447966,-691.49452833,0.00022805,2]
[321912273,1712615447975,-150.0,0.00023768,2]
[321912274,1712615447985,-150.0,0.0002378,2]
[321912275,1712615447997,-2533.83027456,0.00024088,2]
[321912276,1712615525064,554.8,0.00024329,15]
[321912286,1712616163328,520.12,0.00024329,15]
[321912287,1712616369893,173.05,0.00017594,2]
[321912390,1712616631655,-687.25,0.00019779,2]
[321912391,1712616631668,-550.75005717,0.00020155,2]
[321912392,1712616631678,-192.30060608,0.00020156,2]
[321912393,1712616631687,-2349.93858112,0.00020156,2]
[321912394,1712616631696,-150.0,0.000205,2]
[321912395,1712616631705,-3615.835,0.0002078,2]
[321912396,1712616631715,-155.39956827,0.00020898,2]
[321912397,1712616631725,-714.74834698,0.00021,2]
[321912398,1712616631735,-550.0,0.00021,3]
[321912399,1712616631744,-150.0,0.00021,2]
[321912400,1712616631754,-150.0,0.000215,2]
[321912401,1712616631763,-507.05,0.00021663,2]
[321912402,1712616631773,-166.58,0.00021896,2]
[321912403,1712616631782,-194.94,0.00021902,2]
[321912404,1712616631791,-1793.19,0.00021913,2]
[321912405,1712616631801,-250.0,0.00021918,2]
[321912406,1712616631810,-181.25,0.00021957,2]
[321912407,1712616631820,-9086.03,0.00021962,2]
[321912409,1712616631829,-250.0,0.00021993,2]
[321912411,1712616631839,-480.0,0.00021998,2]
[321912413,1712616631848,-640.60613676,0.00022,2]
[321912414,1712616631857,-150.0,0.00022,2]
[321912416,1712616631867,-783.43698561,0.00022,2]
[321912418,1712616631877,-687.25,0.00022043,2]
[321912420,1712616631886,-150.0,0.00022126,2]
[321912422,1712616631896,-1003.76,0.00022353,2]
[321912424,1712616631905,-1003.76,0.00022359,2]
[321912426,1712616631917,-1003.76,0.00022365,2]
[321912428,1712616631926,-1003.76,0.00022371,2]
[321912430,1712616631936,-1003.76,0.00022377,2]
[321912432,1712616631945,-1003.76,0.00022383,2]
[321912434,1712616631954,-1003.76,0.00022388,2]
[321912436,1712616631963,-1003.76,0.00022394,2]
[321912438,1712616631973,-1003.76,0.000224,2]
[321912439,1712616631982,-1003.76,0.00022406,2]
[321912440,1712616631991,-1003.76,0.00022412,2]
[321912441,1712616632000,-150.0,0.00022414,2]
[321912442,1712616632008,-150.0,0.00022414,2]
[321912443,1712616632019,-150.0,0.00022414,2]
[321912444,1712616632032,-184.60206557,0.00022414,2]
[321912446,1712616632042,-1003.76,0.00022418,2]
[321912448,1712616632052,-1003.76,0.00022424,2]
[321912450,1712616632064,-1003.76,0.0002243,2]
[321912452,1712616632073,-1003.76,0.00022436,2]
[321912454,1712616632082,-150.0,0.0002244,2]
[321912456,1712616632091,-1003.76,0.00022441,2]
[321912458,1712616632100,-1003.76,0.00022447,2]
[321912460,1712616632109,-1003.76,0.00022453,2]
[321912470,1712616632194,-1003.76,0.00022459,2]
[321912472,1712616632204,-1003.76,0.00022465,2]
[321912474,1712616632213,-150.0,0.000225,2]
[321912475,1712616632222,-6772.72919321,0.00022552,2]
[321912477,1712616632231,-520.0,0.00022581,2]
[321912479,1712616632241,-150.0,0.0002263,2]
[321912481,1712616632250,-150.0,0.00022648,2]
[321912483,1712616632259,-150.0,0.00022654,2]
[321912485,1712616632269,-500.0,0.0002278,2]
[321912487,1712616632278,-800.0,0.0002278,2]
[321912489,1712616632287,-500.0,0.0002278,2]
[321912491,1712616632296,-500.0,0.0002278,2]
[321912493,1712616632305,-155.47572406,0.00022802,2]
[321912495,1712616632314,-265.13036989,0.00022803,2]
[321912497,1712616632323,-150.0,0.00022829,4]
[321912499,1712616632332,-150.0,0.00022837,2]
[321912501,1712616632341,-150.0,0.00022862,2]
[321912503,1712616632350,-150.0,0.00022872,2]
[321912504,1712616632359,-150.0,0.00022996,2]
[321912505,1712616632369,-600.0,0.00023,3]
[321912506,1712616632378,-150.0,0.00023,2]
[321912507,1712616632387,-200.0,0.00023005,2]
[321912508,1712616632396,-150.0,0.0002308,2]
[321912509,1712616632405,-1500.0,0.00023112,2]
[321912510,1712616632416,-500.0,0.00023112,2]
[321912511,1712616632425,-407.92398347,0.00023112,2]
[321912512,1712616632436,-500.0,0.00023112,2]
[321912513,1712616632447,-2286.0,0.00023113,2]
[321912514,1712616632456,-1365.0,0.00023113,2]
[321912515,1712616632466,-1259.0,0.00023113,2]
[321912516,1712616632475,-1228.0,0.00023113,2]
[321912517,1712616632485,-539.0,0.00023113,2]
[321912518,1712616632495,-607.0,0.00023113,2]
[321912519,1712616632504,-435.0,0.00023113,2]
[321912520,1712616632513,-280.0,0.00023113,2]
[321912521,1712616632526,-806.0,0.00023113,2]
[321912522,1712616632534,-1944.0,0.00023113,2]
[321912523,1712616632543,-150.0,0.00023113,2]
[321912524,1712616632553,-1139.0,0.00023113,2]
[321912525,1712616632562,-398.0,0.00023113,2]
[321912526,1712616632572,-1469.0,0.00023113,2]
[321912527,1712616632581,-3037.0,0.00023113,2]
[321912528,1712616632590,-2435.0,0.00023113,2]
[321912529,1712616632600,-1634.0,0.00023113,2]
[321912530,1712616632609,-214.0,0.00023113,2]
[321912531,1712616632618,-442.0,0.00023113,2]
[321912532,1712616632627,-354.0,0.00023113,2]
[321912533,1712616632636,-4793.0,0.00023113,2]
[321912534,1712616632645,-150.0,0.00023113,2]
[321912535,1712616632654,-150.0,0.00023113,2]
[321912536,1712616632664,-1313.0,0.00023113,2]
[321912537,1712616632674,-37544.0,0.00023113,2]
[321912538,1712616632683,-5707.0,0.00023113,2]
[321912539,1712616632693,-2461.0,0.00023113,2]
[321912540,1712616632704,-150.0,0.00023113,2]
[321912541,1712616632713,-1052.0,0.00023113,2]
[321912542,1712616632722,-150.0,0.00023124,2]
[321912543,1712616632731,-150.0,0.00023189,2]
[321912544,1712616632740,-150.0,0.00023244,4]
[321912545,1712616632749,-150.0,0.00023303,2]
[321912546,1712616632758,-500.0,0.00023328,2]
[321912547,1712616632767,-800.0,0.00023328,2]
[321912548,1712616632776,-1500.0,0.00023343,2]
[321912549,1712616632785,-1500.0,0.00023363,2]
[321912550,1712616632794,-150.0,0.00023427,2]
[321912551,1712616632803,-1500.0,0.00023437,2]
[321912552,1712616632812,-150.0,0.00023446,2]
[321912553,1712616632821,-150.0,0.00023464,2]
[321912554,1712616632830,-150.0,0.00023474,2]
[321912555,1712616632839,-22136.7184109,0.00023489,2]
[321912556,1712616633470,-716.91,0.00023489,2]
[321912557,1712616633490,-1457.68,0.00023489,2]
[321912558,1712616633512,-154.812,0.00023113,2]
[321912559,1712616633523,-557.988,0.00023489,2]
[321912560,1712616633536,-297.90292434,0.00023489,2]
[321912561,1712616633548,-1723.49402903,0.00023489,2]
[321912569,1712616637983,-306.97533583,0.00023,2]
[321912571,1712616637993,-150.0,0.00023113,2]
[321912573,1712616638002,-266.79,0.00023113,2]
[321912575,1712616638011,-8309.29027638,0.00023489,2]
[321912685,1712616639590,-497.8010448,0.00023489,2]
[321912686,1712616639602,-1110.17490917,0.00023489,2]
[321912687,1712616639613,-6230.55746256,0.00023489,2]
[321912688,1712616639625,-723.46820142,0.00023489,2]
[321912689,1712616639668,-269.12,0.00023489,2]
[321912690,1712616639723,-56347.1080414,0.00023489,2]
[321912691,1712616639733,-154.96356102,0.00023491,2]
[321912692,1712616639743,-150.0,0.000235,2]
[321912693,1712616639753,-1000.0,0.000235,2]
[321912694,1712616639762,-150.0,0.00023511,2]
[321912695,1712616639771,-1500.0,0.00023524,2]
[321912696,1712616639781,-500.0,0.00023555,2]
[321912697,1712616639790,-1500.0,0.00023563,2]
[321912698,1712616639799,-800.0,0.00023589,2]
[321912699,1712616639809,-1500.0,0.00023621,2]
[321912700,1712616639818,-150.0,0.00023641,2]
[321912701,1712616639828,-150.0,0.00023659,4]
[321912702,1712616639837,-150.0,0.00023659,4]
[321912704,1712616639847,-300.0,0.00023687,2]
[321912706,1712616639856,-1000.0,0.00023693,2]
[321912707,1712616639865,-10536.00766714,0.00023712,2]
[321912708,1712616639875,-150.0,0.00023731,2]
[321912709,1712616639884,-1500.0,0.00023737,2]
[321912710,1712616639893,-1500.0,0.00023769,2]
[321912711,1712616639903,-300.0,0.00023784,2]
[321912712,1712616639913,-1500.0,0.00023786,2]
[321912713,1712616639923,-300.0,0.00023789,2]
[321912714,1712616639933,-29899.12872064,0.000238,2]
[321912715,1712616642557,-836.60016149,0.000238,2]
[321912716,1712616642569,-500.0,0.000238,2]
[321912717,1712616642598,-63766.20142585,0.000238,2]
[321912718,1712616642610,-51911.35997603,0.000238,2]
[321912719,1712616642649,-300.0,0.000238,2]
[321912720,1712616643095,-63886.72059336,0.000238,2]
[321912721,1712616643117,-1500.0,0.00023807,2]
[321912722,1712616643127,-471.040907,0.00023809,2]
[321912723,1712616643137,-1500.0,0.00023812,2]
[321912724,1712616643146,-1000.0,0.00023832,2]
[321912725,1712616643156,-358.509031,0.00023836,2]
[321912726,1712616643166,-150.0,0.00023842,2]
[321912727,1712616643175,-150.0,0.00023847,2]
[321912728,1712616643184,-265.04124,0.0002385,2]
[321912729,1712616643194,-1500.0,0.0002387,2]
[321912730,1712616643203,-500.0,0.00023876,2]
[321912731,1712616643213,-500.0,0.00023876,2]
[321912732,1712616643223,-500.0,0.00023876,2]
[321912733,1712616643232,-800.0,0.00023876,2]
[321912734,1712616643242,-300.0,0.00023897,2]
[321912735,1712616643251,-150.0,0.00023903,2]
[321912736,1712616643261,-1500.0,0.00023905,2]
[321912737,1712616643270,-1500.0,0.00023905,2]
[321912738,1712616643279,-800.0,0.00023918,2]
[321912739,1712616643289,-621.66917706,0.00023933,2]
[321912740,1712616643298,-1470.33982002,0.00023934,2]
[321912741,1712616643308,-150.0,0.00023952,2]
[321912742,1712616643317,-150.0,0.00023966,2]
[321912743,1712616643327,-200.0,0.0002397,2]
[321912744,1712616643336,-1000.0,0.0002397,2]
[321912746,1712616643345,-500.0,0.0002397,2]
[321912748,1712616643356,-150.0,0.00023984,2]
[321912750,1712616643365,-150.0,0.00023986,2]
[321912752,1712616643375,-117635.086,0.00023988,2]
[321912754,1712616643385,-10536.00766706,0.00023989,2]
[321912756,1712616643395,-224.56326927,0.00024,2]
[321912758,1712616643405,-365.10503971,0.00024,2]
[321912760,1712616643414,-150.0,0.00024,2]
[321912762,1712616643425,-150.0,0.00024,2]
[321912763,1712616643435,-300.0,0.00024002,2]
[321912764,1712616643447,-150.0,0.00024002,2]
[321912765,1712616643457,-471.040907,0.00024009,2]
[321912766,1712616643467,-150.0,0.00024044,2]
[321912768,1712616643477,-300.0,0.00024045,2]
[321912769,1712616643487,-300.0,0.00024065,2]
[321912770,1712616643496,-150.0,0.00024074,4]
[321912771,1712616643505,-150.0,0.00024078,2]
[321912772,1712616643514,-150.0,0.00024084,2]
[321912773,1712616643525,-155.0,0.00024086,2]
[321912774,1712616643535,-155.53852808,0.00024086,2]
[321912775,1712616643544,-544.53851712,0.00024086,2]
[321912776,1712616643554,-5000.0,0.00024086,2]
[321912777,1712616643564,-339.13623079,0.00024086,2]
[321912778,1712616643573,-5528.27738706,0.00024086,2]
[321912779,1712616643583,-155.0,0.00024086,2]
[321912780,1712616643592,-914.97641005,0.00024086,2]
[321912781,1712616643602,-197.12531713,0.00024086,2]
[321912782,1712616643611,-1050.64635685,0.00024086,2]
[321912783,1712616643620,-205.83331766,0.00024086,2]
[321912784,1712616643629,-156.44648303,0.00024086,2]
[321912785,1712616643637,-308.48334315,0.00024086,2]
[321912786,1712616643646,-155.0,0.00024086,2]
[321912787,1712616643655,-231.30807783,0.00024086,2]
[321912788,1712616643665,-196.5317841,0.00024086,2]
[321912789,1712616643675,-591.48651858,0.00024086,2]
[321912790,1712616643683,-806.18760338,0.00024086,2]
[321912791,1712616643693,-2109.34189591,0.00024086,2]
[321912792,1712616643702,-1295.12322629,0.00024086,2]
[321912793,1712616643711,-304.19719016,0.00024087,2]
[321912794,1712616643721,-155.0,0.00024087,2]
[321912795,1712616643730,-1625.41302439,0.00024087,2]
[321912796,1712616643740,-53507.17353626,0.00024088,2]
[321912797,1712616643749,-141574.81438698,0.0002409,2]
[321912798,1712616643758,-150.0,0.00024091,2]
[321912799,1712616643767,-155.00004736,0.00024092,2]
[321912800,1712616643777,-1500.0,0.00024099,2]
[321912801,1712616643786,-1000.0,0.000241,2]
[321912802,1712616643795,-1000.0,0.000241,2]
[321912803,1712616643804,-150.0,0.00024108,2]
[321912804,1712616643814,-800.0,0.0002411,2]
[321912805,1712616643824,-1000.0,0.00024133,2]
[321912806,1712616643833,-150.0,0.00024144,2]
[321912807,1712616643842,-150.0,0.00024149,2]
[321912808,1712616643851,-150.0,0.0002415,2]
[321912809,1712616643861,-150.0,0.0002416,2]
[321912810,1712616643870,-150.0,0.00024173,2]
[321912811,1712616643879,-1500.0,0.00024196,2]
[321912812,1712616643895,-150.0,0.000242,2]
[321912813,1712616643904,-150.0,0.00024207,2]
[321912814,1712616643914,-471.040907,0.00024209,2]
[321912815,1712616643926,-1500.0,0.00024212,2]
[321912816,1712616643935,-150.0,0.00024221,2]
[321912817,1712616643944,-150.0,0.00024226,2]
[321912818,1712616643954,-1500.0,0.00024233,2]
[321912819,1712616643963,-300.0,0.00024245,2]
[321912820,1712616643973,-150.0,0.00024265,2]
[321912821,1712616643982,-10536.00766706,0.00024265,2]
[321912822,1712616643992,-471.040907,0.00024269,2]
[321912823,1712616644001,-471.040907,0.00024279,2]
[321912824,1712616644010,-150.0,0.00024279,2]
[321912825,1712616644020,-150.0,0.00024282,2]
[321912826,1712616644029,-150.0,0.00024286,2]
[321912827,1712616644039,-471.040907,0.00024289,2]
[321912828,1712616644048,-300.0,0.00024292,2]
[321912829,1712616644057,-1000.0,0.00024296,2]
[321912830,1712616644066,-278.8316,0.00024299,2]
[321912831,1712616644076,-471.040907,0.00024299,2]
[321912832,1712616644085,-150.0,0.00024299,2]
[321912833,1712616644094,-1000.0,0.000243,2]
[321912834,1712616644103,-1500.0,0.00024303,2]
[321912835,1712616644112,-687.25,0.00024307,2]
[321912836,1712616644121,-471.040907,0.00024309,2]
[321912837,1712616644130,-471.040907,0.00024319,2]
[321912838,1712616644140,-1000.0,0.00024328,2]
[321912839,1712616644149,-1000.0,0.00024328,2]
[321912840,1712616644159,-1000.0,0.00024328,2]
[321912841,1712616644169,-155.0,0.00024329,2]
[321912842,1712616644178,-2208.16129134,0.00024329,2]
[321912843,1712616644187,-2000.0,0.00024329,2]
[321912844,1712616644196,-200.0,0.00024329,2]
[321912845,1712616644207,-2000.0,0.00024329,2]
[321912846,1712616644216,-471.040907,0.00024329,2]
[321912847,1712616644225,-2000.0,0.00024329,2]
[321912848,1712616644234,-200.0,0.00024329,2]
[321912849,1712616644244,-2000.0,0.00024329,2]
[321912850,1712616644253,-200.0,0.00024329,2]
[321912851,1712616644263,-261.92366545,0.00024329,2]
[321912852,1712616644272,-68225.29434868,0.0002433,2]
[321912853,1712616644282,-300.0,0.00024334,2]
[321912854,1712616644292,-471.040907,0.00024339,2]
[321912855,1712616644301,-150.0,0.00024347,2]
[321912856,1712616644311,-471.040907,0.00024349,2]
[321912857,1712616644321,-224.0,0.0002435,5]
[321912858,1712616644330,-150.0,0.0002435,2]